bitfinex-derivatives/quotes_ETHF0:USTF0_20230702
["timestamp","ask_amount","ask_price","bid_price","bid_amount"]
[1688260971461,0.0077997,1923.3,1923.2,13.4740202]
[1688260971857,0.4970279,1923.3,1923.2,13.4740202]
[1688260991477,0.78374425,1923.3,1923.2,8.6168202]
[1688260997283,0.64990108,1923.3,1923.2,8.6168202]
[1688260997587,0.96189108,1923.3,1923.2,8.6168202]
[1688260997885,0.82636478,1923.3,1923.2,8.6168202]
[1688260999485,0.82636478,1923.3,1923.2,0.7280202]
[1688260999681,0.82636478,1923.3,1923.0,0.7878697]
[1688260999682,5.50736478,1923.3,1923.0,0.7878697]
[1688260999887,4.681,1923.1,1923.0,0.7878697]
[1688261000084,5.27973635,1923.1,1923.0,6.97e-05]
[1688261000289,5.27973635,1923.1,1922.9,0.31204]
[1688261000490,5.27973635,1923.1,1923.0,0.78004]
[1688261000786,5.27973635,1923.1,1923.0,0.31204]
[1688261000989,5.84722047,1923.1,1923.0,0.31204]
[1688261004296,7.5772097,1923.1,1923.0,0.31204]
[1688261012904,8.00048925,1923.1,1923.0,0.31204]
[1688261014104,5.95476,1923.2,1923.0,0.31204]
[1688261014105,9.8557,1923.2,1923.0,0.31204]
[1688261014296,0.3197897,1923.3,1923.1,7.8848]
[1688261014504,2.01173116,1923.3,1923.2,0.312]
[1688261015507,2.29844751,1923.3,1923.2,0.312]
[1688261016909,2.01173116,1923.3,1923.2,0.312]
[1688261017607,2.29844751,1923.3,1923.2,0.312]
[1688261022205,6.97944751,1923.3,1923.2,0.312]
[1688261022408,6.69273116,1923.3,1923.2,0.312]
[1688261024216,6.97944751,1923.3,1923.2,0.312]
[1688261027022,7.19390737,1923.3,1923.2,0.312]
[1688261034823,7.19390737,1923.3,1923.2,3.5198]
[1688261035024,1.91420102,1923.3,1923.2,8.1608]
[1688261035323,0.22225956,1923.3,1923.2,8.1608]
[1688261042136,0.50897591,1923.3,1923.2,8.2008]
[1688261042435,0.22225956,1923.3,1923.2,8.2008]
[1688261042637,0.50897591,1923.3,1923.2,8.2008]
[1688261043132,0.82096591,1923.3,1923.2,8.2008]
[1688261057141,0.82096591,1923.3,1923.2,7.1141149]
[1688261057343,0.82096591,1923.3,1923.2,7.4261149]
[1688261057548,0.53424956,1923.3,1923.2,2.7451149]
[1688261058242,0.22225956,1923.3,1923.2,2.7451149]
[1688261058445,0.22225956,1923.3,1923.2,7.4261149]
[1688261058841,0.31193,1923.7,1923.2,7.5301149]
[1688261059042,0.31193,1923.7,1923.6,4.681]
[1688261059346,0.31193,1923.7,1923.6,4.99294]
[1688261061147,0.59864635,1923.7,1923.6,4.99294]
[1688261061547,0.31193,1923.7,1923.6,4.99294]
[1688261062145,0.31193,1923.7,1923.6,0.31194]
[1688261062146,4.99293,1923.7,1923.6,0.31194]
[1688261062338,6.68487146,1923.7,1923.6,0.31194]
[1688261062544,6.97158781,1923.7,1923.6,0.31194]
[1688261066561,7.34244391,1923.7,1923.6,0.31194]
[1688261081171,10.55024391,1923.7,1923.4,0.31197]
[1688261081365,4.681,1923.5,1923.4,0.31197]
[1688261081565,5.13430355,1923.5,1923.4,0.31197]
[1688261081966,5.4210199,1923.5,1923.4,0.31197]
[1688261082466,7.11296136,1923.5,1923.4,0.31197]
[1688261094672,7.53400328,1923.5,1923.4,0.31197]
[1688261111578,7.11296136,1923.5,1923.4,0.31197]
[1688261112385,7.11296136,1923.5,1923.4,5.12477]
[1688261142216,11.79396136,1923.5,1923.2,4.8228]
[1688261142417,4.681,1923.3,1923.0,0.93601]
[1688261142619,0.59872635,1923.2,1923.1,0.4107942]
[1688261142819,5.27972635,1923.2,1923.1,0.4107942]
[1688261143020,5.84721047,1923.2,1923.1,0.4107942]
[1688261154527,6.26901466,1923.2,1923.1,0.4107942]
[1688261163243,5.27972635,1923.2,1923.1,0.4107942]
[1688261191360,5.27972635,1923.2,1923.1,0.81678334]
[1688261194154,4.99301,1923.2,1923.1,0.81678334]
[1688261196659,4.99301,1923.2,1923.1,4.02458334]
[1688261197559,5.27972635,1923.2,1923.1,4.02458334]
[1688261197961,5.27972635,1923.2,1923.1,0.81678334]
[1688261204268,4.681,1923.2,1923.1,4.02458334]
[1688261229593,6.37294146,1923.2,1923.1,4.02458334]
[1688261232097,6.97165781,1923.2,1923.1,0.4107942]
[1688261234399,6.97165781,1923.2,1922.9,0.00780011]
[1688261234595,4.681,1923.0,1922.9,0.00780011]
[1688261234787,4.681,1923.0,1922.7,0.40965044]
[1688261234788,4.677,1922.9,1922.7,0.40965044]
[1688261235097,8.76835412,1922.8,1922.3,3.51993]
[1688261235290,4.99313,1922.4,1922.3,3.51993]
[1688261235492,5.84733047,1922.4,1922.3,0.31213]
[1688261237703,9.05513047,1922.4,1922.3,0.41111497]
[1688261238005,9.05513047,1922.4,1922.3,0.31216]
[1688261238006,15.42807193,1922.4,1922.3,0.31216]
[1688261238397,13.73613047,1922.4,1922.3,0.31216]
[1688261238804,13.73613047,1922.4,1922.3,0.31215]
[1688261239407,10.52833047,1922.4,1922.3,0.31215]
[1688261240708,13.73613047,1922.4,1922.3,0.31215]
[1688261241901,10.52833047,1922.4,1922.3,0.31215]
[1688261242113,5.84733047,1922.4,1922.3,0.31215]
[1688261242304,5.84733047,1922.4,1922.3,0.85596335]
[1688261244212,5.84733047,1922.4,1922.3,0.54381335]
[1688261244418,9.05513047,1922.4,1922.3,0.54381335]
[1688261244716,9.47368826,1922.4,1922.3,0.85596335]
[1688261249213,9.47368826,1922.4,1922.3,0.54381335]
[1688261249214,14.15468826,1922.4,1922.3,0.54381335]
[1688261249722,14.15468826,1922.4,1921.9,3.2078]
[1688261249915,4.681,1922.0,1921.9,3.2078]
[1688261250115,5.84740047,1922.0,1921.9,3.2078]
[1688261250328,5.84740047,1922.0,1921.7,3.98838]
[1688261250514,4.681,1921.8,1921.7,8.3576]
[1688261250715,5.84743047,1921.8,1921.7,8.66984]
[1688261251118,5.84743047,1921.8,1921.7,9.09500747]
[1688261251525,9.05523047,1921.8,1921.7,5.88720747]
[1688261251920,9.05523047,1921.8,1921.7,5.46204]
[1688261252133,9.05523047,1921.8,1921.7,6.25472289]
[1688261252521,5.84743047,1921.8,1921.7,6.25472289]
[1688261255424,9.05523047,1921.8,1921.7,6.25472289]
[1688261257024,5.84743047,1921.8,1921.7,6.25472289]
[1688261258032,9.05523047,1921.8,1921.7,6.25472289]
[1688261258631,5.84743047,1921.8,1921.7,6.25472289]
[1688261258817,9.05523047,1921.8,1921.7,6.25472289]
[1688261259222,9.46261216,1921.8,1921.7,6.25472289]
[1688261259619,6.25481216,1921.8,1921.7,6.25472289]
[1688261261231,10.93581216,1921.8,1921.7,6.25472289]
[1688261263323,4.96771635,1921.8,1921.7,6.25472289]
[1688261263629,4.681,1921.8,1921.7,6.25472289]
[1688261263826,5.27994635,1921.8,1921.7,6.25472289]
[1688261277130,4.96771635,1921.8,1921.7,6.35872289]
[1688261277331,4.96771635,1921.8,1921.7,9.46252289]
[1688261277332,4.681,1921.8,1921.7,9.46252289]
[1688261277733,4.681,1921.9,1921.7,14.24352289]
[1688261277934,4.681,1921.9,1921.8,0.88455]
[1688261278140,0.78043,1922.3,1921.8,0.88455]
[1688261278335,0.78043,1922.3,1921.9,4.9215]
[1688261278336,0.3122,1922.0,1921.9,4.9215]
[1688261278643,5.27991635,1922.0,1921.9,5.85655103]
[1688261279032,5.27991635,1922.0,1921.9,0.93505103]
[1688261279336,10.06761635,1922.0,1921.9,0.93505103]
[1688261280437,9.7809,1922.0,1921.9,0.93505103]
[1688261280749,10.06761635,1922.0,1921.9,0.93505103]
[1688261282437,10.63510047,1922.0,1921.9,0.93505103]
[1688261292347,12.24046331,1922.0,1921.9,0.93505103]
[1688261293654,12.24046331,1922.0,1921.9,0.62283103]
[1688261294046,12.24046331,1922.0,1921.7,3.98835]
[1688261294346,4.99323,1921.8,1921.7,0.78055]
[1688261294737,5.84743047,1921.8,1921.7,0.78055]
[1688261296048,7.45279331,1921.8,1921.7,0.78055]
[1688261296646,5.84743047,1921.8,1921.7,0.78055]
[1688261297241,5.84743047,1921.8,1921.7,1.50963844]
[1688261302249,10.52843047,1921.8,1921.7,1.50963844]
[1688261302557,12.13379331,1921.8,1921.7,1.50963844]
[1688261307447,17.03559331,1921.8,1921.7,1.50963844]
[1688261308259,17.44414439,1921.8,1921.7,1.50963844]
[1688261309351,17.44414439,1921.8,1921.7,0.72908844]
[1688261309555,17.44414439,1921.8,1921.7,1.04133844]
[1688261314155,17.44414439,1921.8,1921.7,0.72908844]
[1688261314664,17.44414439,1921.8,1921.7,0.79701175]
[1688261314961,17.44414439,1921.8,1921.6,0.32006539]
[1688261315159,4.681,1921.7,1921.6,0.32006539]
[1688261315356,4.99325,1921.7,1921.6,0.32006539]
[1688261319359,4.99325,1921.7,1921.6,3.52786539]
[1688261321061,4.99325,1921.7,1921.6,3.63186539]
[1688261321062,4.681,1921.7,1921.6,3.63186539]
[1688261321255,0.3325,1921.7,1921.6,3.63186539]
[1688261321456,4.681,1921.9,1921.6,8.31286539]
[1688261321662,4.681,1921.9,1921.8,3.52003]
[1688261322064,4.99322,1921.9,1921.8,3.52003]
[1688261325059,4.99322,1921.9,1921.8,3.62403]
[1688261327263,4.99322,1921.9,1921.8,4.42117161]
[1688261332273,5.27993635,1921.9,1921.8,4.42117161]
[1688261332778,5.27993635,1921.9,1921.8,4.31717161]
[1688261334882,5.27993635,1921.9,1921.8,4.73470327]
[1688261335070,4.99322,1921.9,1921.8,4.73470327]
[1688261336474,5.27993635,1921.9,1921.8,4.73470327]
[1688261338375,4.99322,1921.9,1921.8,4.73470327]
[1688261339985,5.27993635,1921.9,1921.8,4.73470327]
[1688261340683,4.99322,1921.9,1921.8,4.73470327]
[1688261344894,9.80492,1921.9,1921.8,4.73470327]
[1688261345091,11.39383079,1921.9,1921.8,4.73470327]
[1688261345297,9.80492,1921.9,1921.8,4.73470327]
[1688261345494,11.40658919,1921.9,1921.8,4.73470327]
[1688261345696,9.80492,1921.9,1921.8,4.73470327]
[1688261351397,10.09163635,1921.9,1921.8,4.73470327]
[1688261351603,10.09163635,1921.9,1921.8,4.31717161]
[1688261352099,11.69322903,1921.9,1921.8,4.31717161]
[1688261353303,10.09163635,1921.9,1921.8,4.31717161]
[1688261353508,11.69292749,1921.9,1921.8,4.31717161]
[1688261353802,11.69277355,1921.9,1921.8,4.31717161]
[1688261354003,10.09163635,1921.9,1921.8,4.31717161]
[1688261354304,9.80492,1921.9,1921.8,4.31717161]
[1688261355799,11.40589724,1921.9,1921.8,4.31717161]
[1688261357099,11.69261359,1921.9,1921.8,4.31717161]
[1688261360200,1.60097724,1921.9,1921.8,4.31717161]
[1688261360504,1.60715419,1922.2,1921.8,8.60644995]
[1688261360704,4.7861,1922.3,1922.1,7.8488]
[1688261360903,6.39325419,1922.3,1922.2,0.31217]
[1688261361099,6.39325419,1922.3,1922.2,0.60271768]
[1688261361513,6.39325419,1922.3,1922.2,5.27971768]
[1688261363604,7.55960466,1922.3,1922.2,5.27971768]
[1688261364914,12.24060466,1922.3,1922.2,0.60271768]
[1688261372205,11.95388831,1922.3,1922.2,0.60271768]
[1688261374411,11.38640419,1922.3,1922.2,0.60271768]
[1688261374813,6.39325419,1922.3,1922.2,5.27971768]
[1688261375014,1.60715419,1922.3,1922.2,5.27971768]
[1688261375215,1.60715419,1922.4,1922.2,5.27971768]
[1688261375412,5.41867263,1922.5,1922.3,3.2078]
[1688261375615,15.79167263,1922.5,1922.4,0.31213]
[1688261375812,17.39882682,1922.5,1922.4,0.59897597]
[1688261378424,17.68554317,1922.5,1922.4,0.59897597]
[1688261382026,17.39882682,1922.5,1922.4,0.59897597]
[1688261383525,17.68554317,1922.5,1922.4,0.59897597]
[1688261386423,17.39882682,1922.5,1922.4,0.59897597]
[1688261388527,17.68554317,1922.5,1922.4,0.59897597]
[1688261392929,17.39882682,1922.5,1922.4,0.59897597]
[1688261393133,6.71368682,1922.5,1922.4,0.59897597]
[1688261393332,0.00780295,1922.5,1922.4,0.59897597]
[1688261393730,1.61495714,1922.5,1922.4,0.59897597]
[1688261396635,2.78127761,1922.5,1922.4,0.59897597]
[1688261398437,2.21379349,1922.5,1922.4,0.59897597]
[1688261399341,1.92707714,1922.5,1922.4,0.59897597]
[1688261401748,1.61495714,1922.5,1922.4,0.59897597]
[1688261402153,1.61495714,1922.5,1922.4,5.27597597]
[1688261402351,0.00780295,1922.5,1922.4,5.27597597]
[1688261404851,0.31992295,1922.5,1922.4,5.27597597]
[1688261406055,0.31992295,1922.5,1922.4,5.38982826]
[1688261406651,0.00780295,1922.5,1922.4,5.49382826]
[1688261411354,0.31992295,1922.5,1922.4,5.38982826]
[1688261411554,0.6066393,1922.5,1922.4,5.38982826]
[1688261411759,5.4971393,1922.5,1922.4,5.35382826]
[1688261412065,7.10429349,1922.5,1922.4,0.71282826]
[1688261418361,11.78529349,1922.5,1922.4,0.40069826]
[1688261418559,14.99309349,1922.5,1922.4,0.39468304]
[1688261418766,14.99309349,1922.5,1922.2,0.78036]
[1688261418956,0.31215,1922.3,1922.2,0.78036]
[1688261419358,2.20602054,1922.3,1922.2,0.31217]
[1688261419953,1.89387054,1922.3,1922.2,0.31217]
[1688261420965,2.20602054,1922.3,1922.2,0.31217]
[1688261421962,7.04562054,1922.3,1922.2,0.31217]
[1688261422265,7.04562054,1922.3,1922.2,4.99317]
[1688261425460,6.75890419,1922.3,1922.2,8.20097]
[1688261425658,1.60715419,1922.3,1922.2,8.20097]
[1688261425959,0.31994295,1922.5,1922.2,8.55545888]
[1688261426155,0.31994295,1922.5,1922.4,8.20093]
[1688261426363,5.25284295,1922.5,1922.4,4.99313]
[1688261426569,6.85999714,1922.5,1922.4,5.21408426]
[1688261427467,7.14671349,1922.5,1922.4,5.21408426]
[1688261428465,7.14671349,1922.5,1922.4,0.53308426]
[1688261428466,11.82771349,1922.5,1922.4,0.53308426]
[1688261428769,11.82771349,1922.5,1922.4,0.22095426]
[1688261429068,15.03551349,1922.5,1922.3,0.31215]
[1688261429267,2.17463831,1922.4,1922.2,5.61741]
[1688261429470,0.31215,1922.3,1922.2,5.61741]
[1688261429667,0.59886635,1922.3,1922.2,5.61741]
[1688261432167,0.59886635,1922.3,1922.2,0.93641]
[1688261436466,0.31215,1922.3,1922.2,0.93641]
[1688261436671,2.95501831,1922.4,1922.2,0.93641]
[1688261437466,2.95501831,1922.4,1922.3,4.95315]
[1688261437671,0.78038,1922.4,1922.3,4.95315]
[1688261437868,6.85998714,1922.5,1922.3,4.95315]
[1688261438173,6.85998714,1922.5,1922.3,8.16095]
[1688261438370,6.54785714,1922.5,1922.3,8.16095]
[1688261438574,7.14669349,1922.5,1922.3,4.95315]
[1688261442173,11.82769349,1922.5,1922.3,4.95315]
[1688261442373,1.60715419,1922.4,1922.3,4.95315]
[1688261442565,1.91928419,1922.4,1922.3,4.95315]
[1688261443479,1.60715419,1922.4,1922.3,8.20095]
[1688261443773,6.54785714,1922.5,1922.3,8.31061566]
[1688261443977,6.54785714,1922.5,1922.4,4.95313]
[1688261444172,6.54785714,1922.5,1922.4,5.06279999]
[1688261450075,1.61495714,1922.5,1922.4,5.06279999]
[1688261450273,0.00780295,1922.5,1922.4,5.06279999]
[1688261450578,0.25038934,1922.5,1922.4,5.05713]
[1688261457284,0.25038934,1922.5,1922.4,5.48051835]
[1688261458883,0.25038934,1922.5,1922.4,5.37651835]
[1688261471892,0.53710569,1922.5,1922.4,5.37651835]
[1688261472489,5.64240569,1922.5,1922.4,5.37651835]
[1688261472790,7.24955988,1922.5,1922.4,5.37651835]
[1688261476900,7.24955988,1922.5,1922.4,8.58431835]
[1688261479191,6.96284353,1922.5,1922.4,8.58431835]
[1688261480105,0.25038934,1922.5,1922.4,8.58431835]
[1688261481102,0.25038934,1922.5,1922.4,8.68831835]
[1688261481304,1.96381125,1923.1,1922.4,18.36931835]
[1688261481507,10.422359,1923.0,1922.9,3.51985]
[1688261481696,12.3608466,1923.0,1922.9,8.19685]
[1688261482104,12.3608466,1923.0,1922.9,4.98905]
[1688261483715,12.6728866,1923.0,1922.9,4.98905]
[1688261488415,12.38617025,1923.0,1922.9,4.98905]
[1688261490416,12.6728866,1923.0,1922.9,0.31205]
[1688261490808,17.3538866,1923.0,1922.8,0.78794051]
[1688261491013,6.90025537,1922.9,1922.8,0.00780051]
[1688261491214,7.42072646,1922.9,1922.6,5.72119]
[1688261491417,0.28671635,1922.8,1922.7,0.31208]
[1688261491715,0.80720356,1922.8,1922.7,0.31208]
[1688261491922,1.37468768,1922.8,1922.7,0.31208]
[1688261492121,9.26348768,1922.8,1922.7,0.15518]
[1688261492321,10.91525893,1922.8,1922.7,0.15518]
[1688261493420,7.70745893,1922.8,1922.7,0.15518]
[1688261493615,6.05568768,1922.8,1922.7,0.15518]
[1688261494411,1.37468768,1922.8,1922.7,0.15518]
[1688261495617,4.58248768,1922.8,1922.7,0.15518]
[1688261495917,6.23425893,1922.8,1922.7,0.15518]
[1688261502122,10.91525893,1922.8,1922.7,0.15518]
[1688261502635,7.70745893,1922.8,1922.7,0.15518]
[1688261502832,6.05568768,1922.8,1922.7,0.15518]
[1688261506335,9.26348768,1922.8,1922.7,0.15518]
[1688261506637,10.91525893,1922.8,1922.7,0.15518]
[1688261508635,10.91525893,1922.8,1922.6,0.00780133]
[1688261508838,10.91525893,1922.8,1922.3,0.78029]
[1688261508839,6.64486125,1922.7,1922.3,0.78029]
[1688261509027,4.99314,1922.4,1922.3,0.78029]
[1688261509228,5.27985635,1922.4,1922.3,0.78029]
[1688261509427,8.48765635,1922.4,1922.3,0.78029]
[1688261509627,10.70691172,1922.4,1922.3,0.78029]
[1688261510626,7.49911172,1922.4,1922.3,0.78029]
[1688261510932,0.87962412,1922.4,1922.3,5.46129]
[1688261511732,1.16634047,1922.4,1922.3,5.46129]
[1688261512234,9.05514047,1922.4,1922.2,0.31996295]
[1688261512436,1.65177125,1922.3,1922.2,0.31996295]
[1688261512738,1.96392125,1922.3,1922.2,0.31996295]
[1688261513030,6.79422125,1922.3,1922.2,0.31996295]
[1688261514525,1.96392125,1922.3,1922.2,0.31996295]
[1688261514935,0.31215,1922.3,1922.2,0.31996295]
[1688261516036,1.65177125,1922.4,1922.2,5.00096295]
[1688261516241,2.58812125,1922.7,1922.3,7.8888]
[1688261516535,0.07125499,1922.6,1922.5,5.42126]
[1688261516735,1.65177125,1922.7,1922.5,5.42126]
[1688261517141,0.06520839,1922.6,1922.5,5.42126]
[1688261517336,0.31209,1922.7,1922.5,8.62906]
[1688261517533,0.06520478,1922.6,1922.5,8.62906]
[1688261517734,0.06520478,1922.6,1922.5,8.66506]
[1688261517945,1.65177125,1922.9,1922.5,8.66506]
[1688261518241,1.65177125,1923.0,1922.9,0.31205]
[1688261518446,0.28671635,1923.0,1922.9,0.31205]
[1688261518736,0.84026058,1923.0,1922.9,0.31205]
[1688261519038,5.45163332,1923.0,1922.9,0.31205]
[1688261519237,7.10340457,1923.0,1922.9,0.31205]
[1688261528451,7.10340457,1923.0,1922.8,0.78014]
[1688261528649,0.56748412,1922.9,1922.8,0.78014]
[1688261528846,1.01791612,1922.9,1922.8,0.78014]
[1688261529950,0.70586612,1922.9,1922.8,0.78014]
[1688261530951,0.138382,1922.9,1922.8,0.78014]
[1688261532156,0.138382,1922.9,1922.8,5.42114]
[1688261533156,0.450432,1922.9,1922.8,5.42114]
[1688261542066,0.450432,1922.9,1922.8,0.78014]
[1688261548283,5.331932,1922.9,1922.8,0.78014]
[1688261548579,6.98370325,1922.9,1922.8,0.78014]
[1688261563283,6.98370325,1922.9,1922.8,0.31207]
[1688261563585,6.98370325,1922.9,1922.5,10.65495]
[1688261563586,11.66470325,1922.9,1922.5,10.65495]
[1688261563887,0.31209,1922.7,1922.5,5.61725]
[1688261564085,0.73706905,1922.6,1922.5,5.61725]
[1688261564289,1.30455317,1922.6,1922.5,5.61725]
[1688261564683,6.28565317,1922.6,1922.5,5.61725]
[1688261572179,5.71816905,1922.6,1922.5,0.93625]
[1688261574793,0.1382527,1922.6,1922.5,0.93625]
[1688261575183,1.65177125,1922.7,1922.5,0.93625]
[1688261575390,1.65177125,1922.7,1922.5,4.14405]
[1688261575391,0.13816341,1922.6,1922.5,4.14405]
[1688261575697,1.96386125,1922.7,1922.5,4.14405]
[1688261575895,0.13815872,1922.6,1922.5,4.14405]
[1688261576194,1.96386125,1922.7,1922.5,4.14405]
[1688261576195,6.64486125,1922.7,1922.5,4.14405]
[1688261576494,0.13815468,1922.6,1922.5,4.14405]
[1688261576790,6.64486125,1922.7,1922.5,4.14405]
[1688261576992,6.9315776,1922.7,1922.5,4.14405]
[1688261577192,0.13814867,1922.6,1922.5,4.14405]
[1688261577390,6.9315776,1922.7,1922.5,4.14405]
[1688261577700,0.13814491,1922.6,1922.5,4.14405]
[1688261577897,6.9315776,1922.7,1922.5,4.14405]
[1688261578101,0.13814068,1922.6,1922.5,4.14405]
[1688261578492,6.9315776,1922.7,1922.5,4.14405]
[1688261578700,0.13813637,1922.6,1922.5,4.14405]
[1688261578998,6.9315776,1922.7,1922.5,4.14405]
[1688261579203,0.13813271,1922.6,1922.5,4.14405]
[1688261579399,6.9315776,1922.7,1922.5,4.14405]
[1688261579601,0.13812871,1922.6,1922.5,4.14405]
[1688261579796,6.9315776,1922.7,1922.5,4.14405]
[1688261580103,0.13812472,1922.6,1922.5,4.14405]
[1688261580400,6.9315776,1922.7,1922.5,4.14405]
[1688261580601,0.13812068,1922.6,1922.5,4.14405]
[1688261580998,6.9315776,1922.7,1922.5,4.14405]
[1688261581200,0.13811635,1922.6,1922.5,4.14405]
[1688261581404,6.9315776,1922.7,1922.5,4.14405]
[1688261581593,0.13811286,1922.6,1922.5,4.14405]
[1688261581795,6.9315776,1922.7,1922.5,4.14405]
[1688261582102,0.1381087,1922.6,1922.5,8.78505]
[1688261582302,2.2505776,1922.7,1922.5,8.78505]
[1688261582704,0.1381049,1922.6,1922.5,8.78505]
[1688261583003,2.2505776,1922.7,1922.5,8.78505]
[1688261583203,0.13810078,1922.6,1922.5,8.78505]
[1688261583505,2.2505776,1922.7,1922.5,8.78505]
[1688261583702,0.13809636,1922.6,1922.5,8.78505]
[1688261583908,0.3121,1922.6,1922.5,8.78505]
[1688261584201,0.4501927,1922.6,1922.5,8.78505]
[1688261588005,1.01767682,1922.6,1922.5,5.57725]
[1688261588904,6.05867682,1922.6,1922.5,5.57725]
[1688261589205,7.71044807,1922.6,1922.5,5.57725]
[1688261591006,7.14296395,1922.6,1922.5,5.57725]
[1688261602311,7.14296395,1922.6,1922.5,0.93625]
[1688261615725,15.03176395,1922.6,1922.2,0.31994295]
[1688261615916,4.99315,1922.3,1922.2,0.31994295]
[1688261616115,5.27986635,1922.3,1922.2,0.31994295]
[1688261616516,7.49912172,1922.3,1922.2,0.31994295]
[1688261616819,12.31312172,1922.3,1922.2,0.31994295]
[1688261623825,12.31312172,1922.3,1922.2,0.65617127]
[1688261624623,12.31312172,1922.3,1922.2,0.34403127]
[1688261627625,12.31312172,1922.3,1922.2,3.127e-05]
[1688261627927,17.55152172,1922.3,1921.9,0.78042]
[1688261628226,4.9932,1922.0,1921.9,0.78042]
[1688261628426,5.84740047,1922.0,1921.9,0.78042]
[1688261630924,12.27047809,1922.0,1921.8,0.78831457]
[1688261631126,4.681,1921.9,1921.8,0.00780457]
[1688261631428,10.12572,1921.9,1921.8,0.00780457]
[1688261635431,10.12572,1921.9,1921.8,0.80995381]
[1688261642632,4.99322,1921.9,1921.8,0.80995381]
[1688261642832,4.99322,1921.9,1921.8,0.49772381]
[1688261644137,4.99322,1921.9,1921.8,0.80995381]
[1688261660449,6.57894905,1921.9,1921.8,0.80995381]
[1688261664848,4.99322,1921.9,1921.8,0.80995381]
[1688261665355,5.27993635,1921.9,1921.8,0.80995381]
[1688261666854,6.8656654,1921.9,1921.8,0.80995381]
[1688261669245,6.8656654,1921.9,1921.8,0.49772381]
[1688261670961,6.8656654,1921.9,1921.8,0.80995381]
[1688261672952,6.8656654,1921.9,1921.8,0.49772381]
[1688261676158,6.8656654,1921.9,1921.8,0.80995381]
[1688261689881,6.8656654,1921.9,1921.8,0.49772381]
[1688261690085,4.681,1921.8,1921.5,0.78065]
[1688261690287,4.681,1921.6,1921.5,0.78065]
[1688261690487,4.99326,1921.6,1921.5,0.78065]
[1688261690680,6.57898905,1921.6,1921.5,0.78065]
[1688261691785,6.26672905,1921.6,1921.5,0.78065]
[1688261691979,6.5534454,1921.6,1921.5,0.78065]
[1688261692181,6.8657054,1921.6,1921.5,0.78065]
[1688261692482,6.5534454,1921.6,1921.5,3.98845]
[1688261692688,4.96771635,1921.6,1921.5,3.98845]
[1688261694084,4.681,1921.6,1921.5,3.98845]
[1688261694879,4.99326,1921.6,1921.5,3.98845]
[1688261697685,4.99326,1921.6,1921.5,4.36204719]
[1688261699188,4.681,1921.6,1921.5,4.36204719]
[1688261699388,4.99326,1921.6,1921.5,4.36204719]
[1688261702293,4.681,1921.6,1921.5,4.46604719]
[1688261702496,6.57898905,1921.8,1921.5,9.10704719]
[1688261702692,4.681,1921.8,1921.7,3.2078]
[1688261702989,4.681,1921.8,1921.7,3.89700635]
[1688261703188,4.99323,1921.8,1921.7,3.89700635]
[1688261704490,5.27994635,1921.8,1921.7,0.37695635]
[1688261704693,5.27994635,1921.8,1921.6,0.78063]
[1688261704895,5.24848412,1921.7,1921.6,0.78063]
[1688261705097,5.56073412,1921.7,1921.6,0.78063]
[1688261705496,10.71093412,1921.7,1921.6,0.78063]
[1688261705690,12.29666317,1921.7,1921.6,0.78063]
[1688261711492,12.29666317,1921.7,1921.6,0.31226]
[1688261713898,12.29666317,1921.7,1921.6,0.68933325]
[1688261719007,11.72917905,1921.7,1921.6,0.68933325]
[1688261719600,12.0158954,1921.7,1921.6,0.68933325]
[1688261720203,11.72917905,1921.7,1921.6,0.68933325]
[1688261721298,12.0158954,1921.7,1921.6,0.68933325]
[1688261722110,11.72917905,1921.7,1921.6,0.68933325]
[1688261724504,12.0158954,1921.7,1921.6,0.68933325]
[1688261725612,12.43739658,1921.7,1921.6,0.68933325]
[1688261727208,12.43739658,1921.7,1921.6,0.37707325]
[1688261727613,12.43739658,1921.7,1921.6,0.68933325]
[1688261737014,12.15068023,1921.7,1921.6,0.68933325]
[1688261739717,12.43739658,1921.7,1921.6,0.68933325]
[1688261745625,12.43739658,1921.7,1921.6,0.37707325]
[1688261747121,12.43739658,1921.7,1921.6,0.68933325]
[1688261761437,12.15068023,1921.7,1921.6,0.68933325]
[1688261761937,12.43739658,1921.7,1921.6,0.68933325]
[1688261764531,12.15068023,1921.7,1921.6,0.68933325]
[1688261765737,6.68823023,1921.7,1921.6,0.79333325]
[1688261765936,1.58572905,1921.7,1921.6,0.79333325]
[1688261766140,5.45763,1921.8,1921.6,0.79333325]
[1688261766335,5.45763,1921.8,1921.6,0.69160157]
[1688261766644,5.45763,1921.8,1921.7,3.2078]
[1688261766832,4.99324,1921.9,1921.7,3.52005]
[1688261767138,4.99324,1921.9,1921.7,3.79280121]
[1688261768237,5.41363135,1921.9,1921.7,3.79280121]
[1688261770135,5.41363135,1921.9,1921.8,0.104]
[1688261770337,4.99324,1921.9,1921.8,0.41623]
[1688261770736,5.27995635,1921.9,1921.8,0.31223]
[1688261771442,6.8656854,1921.9,1921.8,0.31223]
[1688261771639,6.8656854,1921.9,1921.7,3.79280121]
[1688261771944,2.1846854,1921.9,1921.8,0.31223]
[1688261772142,6.8656854,1921.9,1921.8,0.31223]
[1688261773844,6.8656854,1921.9,1921.8,0.58505103]
[1688261775453,10.0734854,1921.9,1921.8,0.27282103]
[1688261775748,10.0734854,1921.9,1921.6,0.9367]
[1688261775946,4.99325,1921.7,1921.6,0.9367]
[1688261776145,7.43317952,1921.7,1921.6,0.9367]
[1688261788653,7.43317952,1921.7,1921.6,1.2096761]
[1688261789056,7.84027706,1921.7,1921.6,1.2096761]
[1688261791358,7.84027706,1921.7,1921.6,0.2729761]
[1688261791359,11.04807706,1921.7,1921.6,0.2729761]
[1688261792358,11.04807706,1921.7,1921.6,0.5852361]
[1688261794145,11.04807706,1921.7,1921.6,0.2729761]
[1688261799285,11.04807706,1921.7,1921.4,0.78591881]
[1688261799580,1.89798905,1921.6,1921.5,0.58827108]
[1688261799783,4.99326,1921.6,1921.5,0.27599108]
[1688261799972,4.99326,1921.6,1920.9,0.31237]
[1688261799973,5.0,1921.4,1920.9,0.31237]
[1688261800178,8.20116,1921.0,1920.8,10.92908]
[1688261800384,6.83421317,1920.9,1920.8,5.1743]
[1688261800589,6.83421317,1920.9,1920.5,0.31239]
[1688261800590,7.43330952,1920.9,1920.5,0.31239]
[1688261800772,7.43330952,1920.9,1920.6,0.31242]
[1688261800773,7.93450952,1920.9,1920.6,0.31242]
[1688261800978,4.681,1920.7,1920.6,0.31242]
[1688261801181,5.28012635,1920.7,1920.6,0.31242]
[1688261801381,5.84761047,1920.7,1920.5,5.59879]
[1688261801579,4.681,1920.6,1920.5,5.59879]